bitfinex/quotes_SOLUSD_20260304
["timestamp","ask_amount","ask_price","bid_price","bid_amount"]
[1772585543372,4.4402684,86.79,86.763,2.54885013]
[1772585545165,4.4402684,86.79,86.765,2.54885013]
[1772585545774,2.6029231,86.789,86.765,2.54885013]
[1772585548274,2.6029231,86.789,86.766,11.52525182]
[1772585548569,2.6029231,86.789,86.767,2.54885013]
[1772585549375,2.6029231,86.789,86.74,2.54885013]
[1772585549376,2.6029231,86.779,86.74,2.54885013]
[1772585549571,2.6029231,86.769,86.74,2.54885013]
[1772585550565,2.6029231,86.769,86.742,2.54885013]
[1772585551773,2.6029231,86.769,86.743,11.52830775]
[1772585551975,2.6029231,86.769,86.744,2.54885013]
[1772585552374,2.6029231,86.776,86.744,2.54885013]
[1772585552573,127.24754973,87.129,86.743,11.52830775]
[1772585552574,1.8373453,86.8,86.761,2.54885013]
[1772585553260,40.31932908,86.807,86.761,2.54885013]
[1772585553261,1.8373453,86.79,86.761,2.54885013]
[1772585553462,1.8373453,86.79,86.744,2.54885013]
[1772585553766,11.52219751,86.789,86.745,40.34814686]
[1772585553965,11.52219751,86.789,86.746,2.54885013]
[1772585554568,2.11159239,86.788,86.746,2.54885013]
[1772585555084,2.11051435,86.786,86.748,2.54885013]
[1772585555982,2.11051435,86.769,86.732,2.54885013]
[1772585556280,2.11051435,86.769,86.741,2.54885013]
[1772585556491,2.10944869,86.779,86.741,2.54885013]
[1772585556982,11.52183522,86.792,86.751,2.54885013]
[1772585557187,11.52183522,86.792,86.753,2.54885013]
[1772585557372,2.10944869,86.795,86.761,2.54885013]
[1772585558983,2.10609532,86.829,86.791,2.54885013]
[1772585559165,13.62305194,86.829,86.793,2.54885013]
[1772585559693,13.62305194,86.829,86.763,3.69383402]
[1772585559694,2.10382178,86.809,86.753,1.15269788]
[1772585559894,1.8373453,86.82,86.754,2.54885013]
[1772585559895,1.8373453,86.78,86.754,2.54885013]
[1772585560062,2.10382178,86.788,86.754,2.54885013]
[1772585560468,1.83690086,86.79,86.754,2.54885013]
[1772585561183,11.52219751,86.789,86.755,11.52671315]
[1772585561389,1.83690086,86.78,86.756,2.54885013]
[1772585561571,2.09914083,86.769,86.734,2.54885013]
[1772585561895,2.09914083,86.769,86.735,2.54885013]
[1772585563396,13.61933237,86.768,86.737,2.54885013]
[1772585564465,2.09199493,86.767,86.737,2.54885013]
[1772585565076,11.52498617,86.768,86.737,2.54885013]
[1772585565689,2.08966487,86.767,86.738,11.5289723]
[1772585566072,2.08966487,86.767,86.739,2.54885013]
[1772585568078,11.52498617,86.768,86.741,2.61331257]
[1772585568589,5.46970081,86.78,86.741,2.61331257]
[1772585568590,16.99312409,86.78,86.741,2.61331257]
[1772585568896,11.52292837,86.784,86.751,2.61331257]
[1772585569787,2.08061738,86.787,86.751,2.61331257]
[1772585570187,11.52259581,86.786,86.753,2.61331257]
[1772585571899,2.08061738,86.787,86.753,2.61331257]
[1772585572100,19.19721625,86.786,86.753,2.61331257]
[1772585572399,7.67672878,86.785,86.755,2.61331257]
[1772585572582,11.52259581,86.786,86.755,2.61331257]
[1772585572782,7.67669878,86.785,86.755,2.61331257]
[1772585573075,11.52259581,86.786,86.755,2.61331257]
[1772585573403,7.6778467,86.785,86.755,2.61331257]
[1772585573591,11.52259581,86.786,86.757,2.61331257]
[1772585573789,7.67920834,86.785,86.757,2.61331257]
[1772585573991,11.52259581,86.786,86.757,2.61331257]
[1772585574196,7.67863853,86.785,86.757,2.61331257]
[1772585574496,5.46970081,86.78,86.757,2.61331257]
[1772585574885,2.06779922,86.785,86.757,2.61331257]
[1772585575284,7.67873835,86.784,86.757,2.61331257]
[1772585575485,2.06779922,86.785,86.743,28.82075345]
[1772585575486,2.06779922,86.785,86.759,2.61331257]
[1772585575686,11.52286135,86.784,86.759,2.61331257]
[1772585576023,7.67991181,86.783,86.759,2.61331257]
[1772585576185,7.67991181,86.782,86.759,2.61331257]
[1772585576384,5.46970081,86.78,86.759,2.61331257]
[1772585577478,2.06172801,86.777,86.744,2.61331257]
[1772585578812,2.05975337,86.787,86.744,2.61331257]
[1772585578996,2.05975337,86.785,86.744,2.61331257]
[1772585579299,5.46970081,86.78,86.744,2.61331257]
[1772585579803,11.52312691,86.782,86.745,11.52804196]
[1772585580104,7.52750498,86.78,86.746,2.61331257]
[1772585580403,2.05587716,86.779,86.746,2.61331257]
[1772585580711,2.05587716,86.769,86.729,2.61331257]
[1772585580879,0.28432314,86.781,86.72,5.66970081]
[1772585580880,2.05587716,86.759,86.722,2.61331257]
[1772585581397,5.46970081,86.75,86.722,2.61331257]
[1772585581782,2.0539884,86.749,86.722,2.61331257]
[1772585581994,11.52764328,86.748,86.722,2.61331257]
[1772585582501,11.52764328,86.748,86.72,0.2]
[1772585582502,2.05215261,86.739,86.72,0.2]
[1772585582695,2.05215261,86.739,86.695,28.83662418]
[1772585582696,5.46970081,86.73,86.703,14.14687161]
[1772585582999,5.46970081,86.73,86.704,2.61331257]
[1772585583409,2.05030567,86.736,86.704,2.61331257]
[1772585584397,11.52937107,86.735,86.706,2.61331257]
[1772585585397,11.52937107,86.735,86.708,2.61331257]
[1772585585600,1.83922477,86.73,86.708,2.61331257]
[1772585587500,1.83922477,86.76,86.69,1.83922477]
[1772585587501,2.04311819,86.759,86.711,2.61331257]
[1772585587685,1.83922477,86.77,86.731,2.61331257]
[1772585588405,11.52485334,86.769,86.731,2.61331257]
[1772585588714,13.56622329,86.769,86.731,2.61331257]
[1772585589204,2.03964288,86.768,86.731,2.61331257]
[1772585589411,2.03964288,86.766,86.733,2.61331257]
[1772585590384,11.52538465,86.765,86.734,11.529504]
[1772585590598,11.52538465,86.765,86.735,2.61331257]
[1772585592097,2.03964288,86.766,86.735,2.61331257]
[1772585592712,2.03964288,86.766,86.737,2.61331257]
[1772585594519,11.52299413,86.783,86.739,2.61331257]
[1772585594714,1.83922477,86.78,86.741,2.61331257]
[1772585595418,2.02969913,86.779,86.741,2.61331257]
[1772585596817,2.02810997,86.777,86.743,2.61331257]
[1772585599514,2.02043054,86.775,86.745,2.71524438]
[1772585600918,13.54214679,86.782,86.745,2.71524438]
[1772585601109,2.01747562,86.779,86.745,2.71524438]
[1772585601715,2.01747562,86.777,86.747,2.71524438]
[1772585604201,2.01316361,86.775,86.747,2.71524438]
[1772585604501,2.01316361,86.769,86.742,2.71524438]
[1772585604707,2.01316361,86.767,86.735,14.24456235]
[1772585604914,2.01316361,86.765,86.735,14.24456235]
[1772585605219,2.01316361,86.763,86.735,14.24456235]
[1772585605418,2.01176628,86.761,86.735,14.24456235]
[1772585605720,2.01176628,86.759,86.735,14.24456235]
[1772585605923,13.53808085,86.758,86.735,14.24456235]
[1772585606621,11.52631457,86.758,86.735,14.24456235]
[1772585606824,2.01038344,86.757,86.735,14.24456235]
[1772585607523,28.81273069,86.768,86.735,14.24456235]
[1772585607524,11.52588212,86.762,86.736,2.71524438]
[1772585607724,2.00901969,86.763,86.736,2.71524438]
[1772585607917,2.00901969,86.763,86.738,2.71524438]
[1772585608619,11.52578317,86.762,86.738,2.71524438]
[1772585609325,2.00901969,86.763,86.738,2.71524438]
[1772585609499,13.53471369,86.763,86.738,2.71524438]
[1772585609921,13.53471369,86.763,86.739,14.24408377]
[1772585610224,2.00633457,86.762,86.739,2.71524438]
[1772585610721,2.00501469,86.76,86.739,2.71524438]
[1772585611028,2.00501469,86.759,86.724,2.71524438]
[1772585611324,2.00501469,86.759,86.682,1.15364204]
[1772585611325,2.00371613,86.749,86.701,14.24913672]
[1772585611507,2.00371613,86.739,86.701,43.08386757]
[1772585612110,2.00371613,86.737,86.701,43.08386757]
[1772585613208,11.52845859,86.742,86.701,43.08386757]
[1772585613409,11.52845859,86.742,86.71,1.83922477]
[1772585613631,11.52845859,86.742,86.711,2.71524438]
[1772585615022,11.52845859,86.742,86.713,2.71524438]
[1772585616011,11.52782371,86.747,86.713,2.71524438]
[1772585616324,1.99744875,86.746,86.713,2.71524438]
[1772585617308,11.52804196,86.745,86.715,2.71524438]
[1772585617706,1.83922477,86.74,86.715,2.71524438]
[1772585617910,1.83922477,86.74,86.648,46.16336398]
[1772585617911,1.99624175,86.729,86.703,2.71524438]
[1772585618718,1.99624175,86.729,86.694,11.53477051]
[1772585618927,40.34814686,86.745,86.694,11.53477051]
[1772585618928,1.99504118,86.719,86.694,11.53477051]
[1772585619121,1.99504118,86.719,86.694,14.25001489]
[1772585619322,11.53163126,86.718,86.694,11.53477051]
[1772585619630,11.53163126,86.718,86.695,2.71524438]
[1772585619830,1.99504118,86.719,86.695,2.71524438]
[1772585620325,1.99268965,86.725,86.695,2.71524438]
[1772585620506,1.99268965,86.738,86.701,2.71524438]
[1772585621327,40.35093786,86.739,86.701,2.71524438]
[1772585621328,1.98820246,86.736,86.701,2.71524438]
[1772585621632,1.98820246,86.734,86.703,2.71524438]
[1772585622433,3.82299148,86.73,86.705,2.71524438]
[1772585622615,3.82309336,86.73,86.705,2.71524438]
[1772585624611,3.82309336,86.73,86.706,11.53322722]
[1772585624830,3.82309336,86.73,86.707,2.71524438]
[1772585625627,1.9708101,86.729,86.707,2.71524438]
[1772585625836,1.9708101,86.729,86.702,2.71524438]
[1772585627228,11.53030163,86.728,86.703,11.53362628]
[1772585627424,13.49273096,86.728,86.703,14.24887066]
[1772585627629,1.96242933,86.727,86.703,14.24887066]
[1772585627834,1.96242933,86.727,86.685,2.71524438]
[1772585628025,1.96242933,86.719,86.685,2.71524438]
[1772585629732,1.96242933,86.719,86.673,28.84380226]
[1772585629733,1.95022112,86.717,86.679,2.65824604]
[1772585629932,1.95022112,86.709,86.679,14.1950658]
[1772585630141,1.95022112,86.709,86.679,2.65824604]
[1772585630347,1.94623076,86.699,86.679,2.65824604]
[1772585630843,1.94623076,86.709,86.679,2.65824604]
[1772585632432,11.5329612,86.708,86.681,2.65824604]
[1772585633541,1.93456774,86.707,86.683,2.65824604]
[1772585636066,1.93456774,86.707,86.685,2.65824604]
[1772585636244,11.53322722,86.706,86.685,2.65824604]
[1772585636749,1.92330399,86.705,86.684,11.5361543]
[1772585636950,1.92330399,86.705,86.679,11.53677371]
[1772585637538,1.91962682,86.726,86.691,2.65824604]
[1772585637741,104.33932665,86.73,86.691,2.65824604]
[1772585638039,106.25895347,86.73,86.691,2.65824604]
[1772585638238,1.91598045,86.729,86.693,2.65824604]
[1772585639546,1.91237988,86.719,86.687,2.65824604]
[1772585640146,40.36070942,86.718,86.681,2.65824604]
[1772585640350,1.90882829,86.717,86.681,2.65824604]
[1772585641851,1.90531834,86.709,86.681,2.65824604]
[1772585642353,13.43480586,86.708,86.683,2.65824604]
[1772585642551,1.90184466,86.707,86.683,2.65824604]
[1772585643851,3.73774167,86.72,86.683,2.65824604]
[1772585644053,1.89841502,86.719,86.683,2.65824604]
[1772585644253,1.89502085,86.715,86.685,2.65824604]
[1772585644938,1.89502085,86.709,86.676,11.53711388]
[1772585645260,1.89502085,86.699,86.677,2.65824604]
[1772585645755,1.83932665,86.71,86.677,2.65824604]
[1772585646059,1.891672,86.709,86.677,2.65824604]
[1772585646272,1.88835925,86.707,86.677,2.65824604]
[1772585647567,1.88835925,86.707,86.679,2.65824604]
[1772585647944,1.88835925,86.707,86.674,11.53741207]
[1772585648144,1.88835925,86.707,86.675,2.65824604]
[1772585649261,1.87871122,86.705,86.677,2.65824604]
[1772585651862,11.53349326,86.704,86.677,2.65824604]
[1772585652063,1.87244911,86.703,86.677,2.65824604]
[1772585653450,1.87244911,86.703,86.678,2.65824604]
[1772585654145,1.86327521,86.709,86.68,2.65824604]
[1772585654350,1.86327521,86.707,86.68,2.65824604]
[1772585654656,1.86327521,86.715,86.68,2.65824604]
[1772585654841,1.86327521,86.713,86.68,2.65824604]
[1772585655037,1.86327521,86.711,86.68,2.65824604]
[1772585655238,9.57371139,86.71,86.68,2.65824604]
[1772585655544,7.7134272,86.709,86.68,2.65824604]
[1772585656053,11.5329612,86.708,86.682,2.65824604]
[1772585656247,7.7134272,86.707,86.682,2.65824604]
[1772585657362,1.85439877,86.706,86.682,2.65824604]
[1772585658063,40.3653642,86.708,86.682,2.65824604]
[1772585658258,7.72284635,86.707,86.682,2.65824604]
[1772585658461,7.72284635,86.706,86.682,2.65824604]
[1772585658640,11.53322722,86.706,86.682,2.65824604]
[1772585659382,7.73140615,86.705,86.684,2.41204745]
[1772585659667,11.53322722,86.706,86.684,2.41204745]
[1772585659848,1.84302852,86.735,86.701,2.48267665]
[1772585660055,11.529504,86.734,86.701,2.48267665]
[1772585660647,11.529504,86.734,86.703,2.48267665]
[1772585661066,13.36976968,86.734,86.703,2.48267665]
[1772585661256,1.83756565,86.733,86.703,2.48267665]
[1772585661861,11.529504,86.734,86.703,2.48267665]
[1772585662567,11.52907193,86.738,86.711,2.48267665]
[1772585662758,11.52907193,86.738,86.713,2.48267665]
[1772585663365,13.36128981,86.738,86.713,2.48267665]
[1772585664263,11.52907193,86.738,86.713,2.48267665]
[1772585664464,11.52923814,86.736,86.713,2.48267665]
[1772585664667,13.35881774,86.736,86.713,2.48267665]
[1772585665562,13.35881774,86.736,86.715,2.48267665]
[1772585666872,13.35881774,86.736,86.702,28.83439828]
[1772585666873,1.82438443,86.735,86.709,2.48267665]
[1772585667467,1.82186912,86.763,86.721,2.48267665]
[1772585667654,1.83932665,86.75,86.721,2.48267665]
[1772585667851,3.66119577,86.75,86.721,2.48267665]
[1772585668055,1.83932665,86.76,86.721,2.48267665]
[1772585668056,1.82186912,86.759,86.721,2.48267665]
[1772585669170,13.3431473,86.758,86.723,2.48267665]
[1772585669575,1.81683273,86.757,86.723,2.48267665]
[1772585672060,1.81683273,86.757,86.724,11.53083344]
[1772585672061,11.52658029,86.756,86.724,11.53083344]
[1772585672274,11.52658029,86.756,86.725,2.48267665]
[1772585672654,1.80951547,86.755,86.725,2.48267665]
[1772585673264,1.80712036,86.749,86.725,2.48267665]
[1772585674077,11.52764328,86.748,86.725,2.48267665]
[1772585680582,1.79120436,86.748,86.725,2.48267665]
[1772585682466,11.52777617,86.747,86.725,2.48267665]
[1772585684775,1.79120436,86.748,86.727,2.48267665]
[1772585685478,102.5,86.774,86.727,2.48267665]
[1772585685479,1.76233248,86.746,86.727,2.48267665]
[1772585685681,40.34721661,86.747,86.727,2.48267665]
[1772585685879,11.52777617,86.747,86.727,2.48267665]
[1772585687169,57.62635105,86.766,86.71,1.83850767]
[1772585687170,1.75122415,86.769,86.731,2.48267665]
[1772585689698,1.73503557,86.767,86.733,2.38248383]
[1772585691168,1.72455465,86.749,86.71,2.38248383]
[1772585691380,1.72455465,86.729,86.692,2.38248383]
[1772585693081,1.7143276,86.727,86.694,2.38248383]
[1772585693490,11.53030163,86.728,86.557,32.18789171]
[1772585693491,1.7143276,86.719,86.681,2.38248383]
[1772585694792,11.53163126,86.718,86.682,11.53642047]
[1772585694980,11.53163126,86.718,86.683,2.38248383]
[1772585695180,13.2359663,86.718,86.683,2.38248383]
[1772585696990,13.2359663,86.718,86.685,2.38248383]
[1772585698601,13.2359663,86.718,86.684,11.5361543]
[1772585698602,1.68976781,86.725,86.691,2.38248383]
[1772585698892,11.53109937,86.722,86.693,2.38248383]
[1772585700293,1.68033033,86.719,86.693,2.38248383]
[1772585700593,1.83850767,86.72,86.68,1.83850767]
[1772585700594,1.68033033,86.709,86.682,2.38248383]
[1772585701106,55.740279,86.74,86.682,2.38248383]
[1772585701107,9.63317365,86.79,86.704,0.28432314]
[1772585701296,2.67779723,86.86,86.781,0.28432314]
[1772585701600,2.57779723,86.829,86.781,2.38248383]
[1772585701796,2.46547188,86.819,86.78,1.83850767]
[1772585701997,2.47879375,86.809,86.77,1.83850767]
[1772585702977,2.47879375,86.807,86.76,1.83850767]
[1772585703297,42.79765836,86.808,86.77,1.83850767]
[1772585703482,11.51910111,86.813,86.78,1.83850767]
[1772585704001,11.51910111,86.813,86.79,1.83850767]
[1772585704395,11.51910111,86.813,86.791,0.20386174]
[1772585704591,11.51829209,86.819,86.791,0.20386174]
[1772585705101,2.47879375,86.818,86.79,1.83850767]
[1772585705303,2.47879375,86.818,86.784,0.206419]
[1772585705304,2.47879375,86.818,86.77,1.83850767]
[1772585705501,2.47879375,86.818,86.771,0.206419]
[1772585706014,11.51829209,86.819,86.771,0.206419]
[1772585706015,2.47879375,86.809,86.771,0.206419]
[1772585707503,2.47879375,86.807,86.76,1.83850767]
[1772585707803,2.47879375,86.807,86.761,11.52591602]
[1772585707981,2.47879375,86.807,86.762,0.21763977]
[1772585709908,2.47879375,86.799,86.75,1.83850767]
[1772585710293,2.47879375,86.799,86.751,0.23400436]
[1772585711203,2.47879375,86.797,86.752,11.76644541]
[1772585711805,2.47879375,86.779,86.74,1.83850767]
[1772585712209,2.47879375,86.779,86.741,11.52857356]
[1772585712518,2.47879375,86.779,86.742,0.24460265]
[1772585712904,2.47879375,86.789,86.761,0.24460265]
[1772585713094,2.47879375,86.789,86.762,11.52578317]
[1772585713297,2.47879375,86.789,86.73,1.83850767]
[1772585713298,2.47879375,86.769,86.72,1.83850767]
[1772585713506,2.47879375,86.759,86.72,1.83850767]
[1772585713906,2.47879375,86.759,86.721,0.24981097]
[1772585714712,1.83850767,86.75,86.712,11.53232278]
[1772585714927,2.47879375,86.749,86.712,11.53232278]
[1772585715214,2.47879375,86.747,86.713,0.26009419]
[1772585718647,2.47879375,86.745,86.714,11.5321632]
[1772585718794,2.47879375,86.745,86.714,11.81207009]
[1772585718996,28.80184331,86.8,86.74,1.83850767]
[1772585719316,2.75951303,86.799,86.76,1.83850767]
[1772585720307,2.75951303,86.797,86.75,1.83850767]
[1772585720505,2.75951303,86.789,86.75,1.83850767]
[1772585720710,2.75951303,86.779,86.744,11.52817485]
[1772585721615,2.75951303,86.769,86.723,28.8271387]
[1772585722516,2.75951303,86.767,86.724,11.53083344]
[1772585722713,2.75951303,86.759,86.724,11.53083344]
[1772585726018,11.52631457,86.758,86.724,11.53083344]
[1772585726319,2.75951303,86.757,86.724,11.53083344]
[1772585728916,2.75951303,86.755,86.724,11.53083344]
[1772585729103,11.52658029,86.756,86.659,46.1574485]
[1772585729104,2.75951303,86.739,86.711,11.53256218]
[1772585730206,2.75951303,86.737,86.702,28.83420721]
[1772585730608,2.75951303,86.737,86.71,5.47302806]
[1772585731723,2.75951303,86.749,86.71,5.47302806]
[1772585731928,2.75951303,86.764,86.72,5.47302806]
[1772585732106,2.75951303,86.762,86.731,11.5299028]
[1772585732426,2.75951303,86.762,86.731,40.3546598]
[1772585732634,2.75951303,86.762,86.731,11.5299028]
[1772585732929,2.75951303,86.762,86.731,40.3546598]
[1772585734823,2.75951303,86.769,86.731,40.3546598]
[1772585736230,2.75951303,86.769,86.731,11.5299028]
[1772585736806,5.47302806,86.77,86.731,11.5299028]
[1772585736807,2.75951303,86.767,86.731,11.5299028]
[1772585739028,2.75951303,86.767,86.72,34.30123218]
[1772585739029,2.75951303,86.765,86.721,40.35931319]
[1772585739435,2.75951303,86.759,86.721,40.35931319]
[1772585739927,2.75951303,86.759,86.712,28.83096456]
[1772585740230,2.75951303,86.749,86.713,11.53229619]
[1772585741212,2.75951303,86.747,86.713,11.53229619]
[1772585741626,11.5271981,86.752,86.72,5.47302806]
[1772585741824,14.28671113,86.752,86.72,5.47302806]
[1772585742832,14.28671113,86.752,86.721,11.53123234]
[1772585743034,2.75951303,86.751,86.721,11.53123234]
[1772585744614,2.75951303,86.751,86.72,5.47074609]
[1772585745830,5.47074609,86.8,86.71,5.47074609]
[1772585745831,2.75951303,86.749,86.71,5.47074609]
[1772585746431,2.75951303,86.749,86.703,3.69383402]
[1772585746651,2.75951303,86.747,86.704,40.36722642]
[1772585746949,2.75951303,86.747,86.71,5.47074609]
[1772585747626,2.75951303,86.747,86.704,40.36722642]
[1772585748432,2.75951303,86.747,86.704,11.53349326]
[1772585748736,2.75951303,86.737,86.704,11.53349326]
[1772585750936,2.75951303,86.735,86.704,11.53349326]
[1772585753541,2.75951303,86.733,86.704,11.53349326]
[1772585753721,2.75951303,86.733,86.71,1.83877423]
[1772585754546,2.75951303,86.748,86.71,1.83877423]
[1772585755443,2.75951303,86.746,86.711,11.53256218]
[1772585756937,2.75951303,86.744,86.711,11.53256218]
[1772585759545,2.75951303,86.742,86.711,11.53256218]
[1772585761749,11.52857356,86.741,86.711,11.53256218]
[1772585761946,2.75951303,86.74,86.711,11.53256218]
[1772585765255,2.75951303,86.769,86.73,1.83877423]
[1772585766340,2.75951303,86.767,86.731,11.5299028]
[1772585766750,2.75951303,86.767,86.731,40.3546598]
[1772585766946,2.75951303,86.777,86.75,1.83877423]
[1772585767140,2.75951303,86.795,86.77,1.83877423]
[1772585768054,28.79832321,86.811,86.77,1.83877423]
[1772585768055,2.75951303,86.793,86.77,1.83877423]
[1772585768446,2.75951303,86.793,86.771,11.5245877]
[1772585768670,2.75951303,86.799,86.771,40.33605696]
[1772585768849,2.75951303,86.799,86.771,11.5245877]
[1772585769361,2.75951303,86.799,86.767,11.52506014]
[1772585769941,2.75951303,86.799,86.742,9.67000184]
[1772585769942,2.75951303,86.775,86.725,9.67000184]
[1772585770147,0.28432314,86.788,86.7,1.83877423]
[1772585770148,2.75951303,86.749,86.7,1.83877423]
[1772585770351,11.5289723,86.738,86.701,11.53389234]
[1772585770545,2.75951303,86.737,86.69,1.83877423]
[1772585771764,2.75951303,86.735,86.69,13.37413009]
[1772585771957,2.75951303,86.735,86.69,42.21251975]
[1772585772558,2.75951303,86.735,86.69,45.84735559]
[1772585772862,2.75951303,86.735,86.7,5.47361007]
[1772585773361,11.52923814,86.736,86.68,5.47361007]
[1772585773362,2.75951303,86.729,86.68,5.47361007]
[1772585773547,2.75951303,86.719,86.68,5.47361007]
[1772585773747,2.75951303,86.717,86.681,11.53655356]
[1772585776162,2.75951303,86.715,86.681,11.53655356]
[1772585776865,2.75951303,86.715,86.681,40.37793748]
[1772585778581,2.75951303,86.713,86.671,11.53788464]
[1772585778868,2.75951303,86.709,86.671,11.53788464]
[1772585779266,11.5321632,86.714,86.66,5.67361007]
[1772585779267,2.75951303,86.699,86.661,11.53921602]
[1772585779970,2.75951303,86.699,86.661,40.38725608]
[1772585780664,2.75951303,86.699,86.67,5.47361007]
[1772585781859,2.75951303,86.699,86.671,11.53788464]
[1772585782662,2.75951303,86.699,86.671,40.38259625]
[1772585784475,2.75951303,86.699,86.66,0.2]
[1772585784476,2.75951303,86.699,86.66,5.67361007]
[1772585784767,5.47361007,86.7,86.661,11.53921602]
[1772585784768,2.75951303,86.697,86.661,11.53921602]
[1772585785755,2.75951303,86.709,86.67,5.47361007]
[1772585785971,2.75951303,86.708,86.67,5.47361007]
[1772585787177,2.75951303,86.708,86.661,40.38725608]
[1772585787877,2.75951303,86.706,86.67,5.47361007]
[1772585788868,2.75951303,86.704,86.671,11.53788464]
[1772585790888,2.75951303,86.704,86.67,5.47361007]
[1772585792481,2.75951303,86.704,86.671,11.53788464]
[1772585792680,46.11764912,86.735,86.671,11.53788464]
[1772585792681,2.75951303,86.719,86.68,5.47361007]
[1772585793870,2.75951303,86.715,86.68,5.47361007]
[1772585794066,2.75951303,86.715,86.671,40.38259625]
[1772585794462,2.75951303,86.699,86.66,0.2]
[1772585794894,2.75951303,86.689,86.66,0.2]
[1772585795771,2.75951303,86.689,86.661,11.53921602]
[1772585796200,2.75951303,86.687,86.661,11.53921602]
[1772585800589,2.75951303,86.685,86.661,11.53921602]
[1772585805110,2.75951303,86.679,86.66,0.2]
[1772585806070,2.75951303,86.685,86.661,11.53921602]
[1772585806271,2.75951303,86.699,86.661,11.53921602]
[1772585807795,2.75951303,86.696,86.661,40.38725608]
[1772585808188,2.75951303,86.702,86.67,1.84062168]
[1772585808995,2.75951303,86.702,86.661,40.38725608]
[1772585809695,2.75951303,86.702,86.67,1.84062168]
[1772585810083,2.75951303,86.702,86.671,40.38259625]
[1772585810483,2.75951303,86.7,86.671,11.53788464]
[1772585810685,2.75951303,86.699,86.671,11.53788464]
[1772585810886,2.75951303,86.689,86.661,11.53921602]
[1772585813088,2.75951303,86.679,86.66,0.2]
[1772585813298,2.75951303,86.679,86.66,11.73927497]
[1772585813496,2.75951303,86.679,86.66,0.2]
[1772585814074,2.75951303,86.677,86.66,0.2]
[1772585814274,2.75951303,86.677,86.655,11.53989954]
[1772585818097,2.75951303,86.677,86.651,11.54054771]
[1772585818294,2.65951303,86.689,86.652,0.16688209]
[1772585818487,2.65951303,86.688,86.652,0.16688209]
[1772585819297,40.37421125,86.689,86.65,0.2]
[1772585819298,2.65951303,86.679,86.65,0.2]
[1772585819478,2.65951303,86.659,86.633,11.54294552]
[1772585820493,2.65951303,86.658,86.63,0.1]
[1772585822388,1.84062168,86.68,86.641,2.57965052]
[1772585823800,1.84062168,86.66,86.63,0.1]
[1772585824180,11.53681976,86.679,86.62,0.2]
[1772585824181,1.84062168,86.64,86.62,0.2]
[1772585824383,2.53354071,86.639,86.62,0.2]
[1772585825285,2.53354071,86.637,86.62,0.2]
[1772585825693,2.53354071,86.649,86.621,11.54454462]
[1772585827299,1.84062168,86.65,86.62,0.2]
[1772585827300,2.53354071,86.647,86.62,0.2]
[1772585828000,2.53354071,86.647,86.62,11.74459921]
[1772585828584,2.53354071,86.647,86.621,2.57965052]
[1772585829885,2.53354071,86.647,86.623,2.57965052]
[1772585830588,2.53354071,86.645,86.62,0.2]
[1772585831803,2.53354071,86.645,86.62,11.74460392]
[1772585834001,2.53354071,86.645,86.621,2.57965052]
[1772585834208,2.53354071,86.645,86.62,40.60629867]
[1772585834209,2.53354071,86.645,86.62,11.74460392]
[1772585834500,2.53354071,86.643,86.615,2.57965052]
[1772585835084,2.53354071,86.643,86.617,2.57965052]
[1772585837510,2.53354071,86.643,86.618,14.12459498]
[1772585837716,11.53415841,86.699,86.631,2.57965052]
[1772585837892,1.84062168,86.69,86.641,2.57965052]
[1772585838212,1.84062168,86.68,86.641,2.57965052]
[1772585839593,11.53695286,86.678,86.642,11.54174649]
[1772585839801,2.73687447,86.677,86.643,2.6672321]
[1772585842213,2.73687447,86.676,86.645,2.6672321]
[1772585842413,2.73687447,86.676,86.651,2.6672321]
[1772585843509,2.73687447,86.684,86.651,2.6672321]
[1772585843708,1.84062168,86.7,86.644,40.39518026]
[1772585843709,2.73687447,86.691,86.661,2.6672321]
[1772585843915,2.73687447,86.689,86.661,2.6672321]
[1772585844295,11.53489854,86.694,86.663,2.6672321]
[1772585845104,1.84062168,86.71,86.671,2.6672321]
[1772585845410,2.73687447,86.708,86.681,2.6672321]
[1772585846505,2.73687447,86.706,86.674,2.6672321]
[1772585846809,2.73687447,86.699,86.674,2.6672321]
[1772585847611,2.73687447,86.699,86.647,3.69383402]
[1772585847612,2.73687447,86.689,86.658,2.6672321]
[1772585848615,2.73687447,86.687,86.661,11.53921602]
[1772585848819,2.73687447,86.687,86.661,14.20644812]
[1772585849817,11.53512433,86.692,86.662,2.6672321]
[1772585850018,2.73687447,86.691,86.662,2.6672321]
[1772585850524,28.83273553,86.707,86.671,2.6672321]
[1772585850525,2.73687447,86.699,86.671,2.6672321]
[1772585850705,14.27103288,86.699,86.673,2.6672321]
[1772585852115,2.73687447,86.698,86.673,2.6672321]
[1772585852617,2.73687447,86.698,86.64,1.84062168]
[1772585852619,11.53200158,86.716,86.681,2.6672321]
[1772585852815,2.73687447,86.718,86.681,2.6672321]
[1772585853818,2.73687447,86.716,86.683,2.6672321]
[1772585856121,2.73687447,86.716,86.685,2.6672321]
[1772585856327,11.53203021,86.715,86.685,2.6672321]
[1772585856509,2.73687447,86.714,86.685,2.6672321]
[1772585857319,2.73687447,86.699,86.661,2.6672321]
[1772585858223,2.73687447,86.697,86.663,2.6672321]
[1772585859626,1.84062168,86.71,86.662,11.53908287]